bitfinex-derivatives/quotes_SOLF0:USTF0_20260304
["timestamp","ask_amount","ask_price","bid_price","bid_amount"]
[1772617418506,34.91331837,91.043,90.977,8.03358181]
[1772617418701,44.79631837,91.06,90.979,35.64551034]
[1772617418911,44.79631837,91.06,90.981,35.64551034]
[1772617419208,44.79631837,91.06,90.983,35.64551034]
[1772617419399,44.79631837,91.06,90.982,8.03358181]
[1772617419400,34.91331837,91.055,90.987,35.64551034]
[1772617419605,34.91331837,91.055,90.988,8.03358181]
[1772617419908,34.91331837,91.055,90.989,8.03358181]
[1772617420108,34.91331837,91.048,90.99,8.03358181]
[1772617420299,34.91331837,91.048,90.991,8.03358181]
[1772617420505,34.91331837,91.066,90.992,43.67909215]
[1772617420805,9.882,91.065,90.995,35.64551034]
[1772617421006,9.882,91.065,90.997,35.64551034]
[1772617421203,9.882,91.065,90.999,35.64551034]
[1772617421405,9.882,91.065,91.001,35.64551034]
[1772617421611,34.91331837,91.056,91.002,8.03358181]
[1772617421802,34.91331837,91.056,90.986,45.53651034]
[1772617421803,34.91331837,91.056,91.003,8.03358181]
[1772617422005,34.91331837,91.056,91.004,8.03358181]
[1772617422204,34.91331837,91.056,91.005,8.03820735]
[1772617422403,34.91331837,91.056,91.006,8.03820735]
[1772617422605,34.91331837,91.056,90.99,35.64551034]
[1772617422803,34.91331837,91.056,90.991,43.68368522]
[1772617423007,34.91331837,91.07,90.996,35.64551034]
[1772617423304,34.91331837,91.07,90.998,35.64551034]
[1772617423511,34.91331837,91.068,91.0,35.64551034]
[1772617423815,34.91331837,91.068,91.001,8.03817488]
[1772617424016,34.91331837,91.068,91.002,8.03817488]
[1772617424215,34.91331837,91.068,91.003,8.03817488]
[1772617424511,34.91331837,91.068,91.004,8.03817488]
[1772617424716,34.91331837,91.068,91.005,8.03817488]
[1772617424917,34.91331837,91.068,91.006,8.03817488]
[1772617425215,9.882,91.064,91.007,8.03817488]
[1772617425416,9.882,91.064,91.008,8.03817488]
[1772617425612,9.882,91.064,91.009,8.03817488]
[1772617425818,9.882,91.064,91.01,8.03817488]
[1772617426117,34.91331837,91.06,91.011,8.03817488]
[1772617426417,34.91331837,91.06,90.988,9.891]
[1772617426611,34.91331837,91.06,90.989,8.04562202]
[1772617426816,34.91331837,91.058,90.992,35.64551034]
[1772617427016,34.91331837,91.058,90.994,35.64551034]
[1772617427219,34.91331837,91.058,90.995,43.69113236]
[1772617427413,34.91331837,91.058,90.996,43.69113236]
[1772617427613,9.883,91.057,90.997,43.69113236]
[1772617427814,34.91331837,91.058,90.999,35.64551034]
[1772617428112,34.91331837,91.058,91.0,8.04562202]
[1772617428315,34.91331837,91.058,90.967,19.27386378]
[1772617428316,37.14839803,91.03,91.001,8.04562202]
[1772617428516,37.14839803,91.03,90.961,36.97822034]
[1772617428712,37.14839803,91.03,90.944,36.97822034]
[1772617429018,9.888,91.01,90.946,36.97822034]
[1772617429414,29.10277601,91.012,90.949,36.97822034]
[1772617430319,29.10277601,91.012,90.953,46.87222034]
[1772617430519,9.888,91.011,90.953,46.87222034]
[1772617430721,28.15683479,91.01,90.939,36.97822034]
[1772617431316,28.15683479,91.01,90.952,9.894]
[1772617431516,28.15683479,91.01,90.953,36.97822034]
[1772617432218,9.888,91.009,90.953,36.97822034]
[1772617432520,28.15683479,91.01,90.957,36.97822034]
[1772617435021,9.888,91.008,90.957,36.97822034]
[1772617436215,28.15683479,91.01,90.957,36.97822034]
[1772617437618,27.63646174,91.008,90.957,36.97822034]
[1772617438218,27.28012107,91.049,90.957,36.97822034]
[1772617439016,9.887,91.023,90.958,9.894]
[1772617439219,27.29684983,91.069,90.959,36.97822034]
[1772617439827,9.886,91.033,90.974,36.97822034]
[1772617440324,27.32807958,91.017,90.954,36.97822034]
[1772617440519,27.32807958,91.017,90.93,4.14117334]
[1772617440520,27.32807958,91.017,90.955,7.97768691]
[1772617440722,27.32807958,91.017,90.956,7.97768691]
[1772617440921,27.32807958,90.987,90.919,36.97822034]
[1772617441322,27.32807958,90.987,90.887,36.97822034]
[1772617441526,27.34461313,90.953,90.87,13.12828953]
[1772617441726,27.34461313,90.953,90.869,36.97822034]
[1772617442124,27.34461313,90.923,90.869,36.97822034]
[1772617442830,27.11527889,90.959,90.869,36.97822034]
[1772617443023,27.11527889,90.957,90.869,36.97822034]
[1772617443527,124.0,90.96,90.83,4.14117334]
[1772617443528,27.13149816,90.939,90.87,36.97822034]
[1772617444037,27.13149816,90.939,90.872,36.97822034]
[1772617445329,24.0512251,90.937,90.872,36.97822034]
[1772617445536,24.0512251,90.937,90.831,36.97822034]
[1772617446538,9.898,90.924,90.849,36.97822034]
[1772617446836,128.15045009,90.96,90.849,36.97822034]
[1772617446837,24.69231051,90.923,90.849,36.97822034]
[1772617447037,24.69231051,90.91,90.849,36.97822034]
[1772617447535,24.70763761,90.906,90.849,36.97822034]
[1772617447735,24.70763761,90.906,90.791,36.97822034]
[1772617447934,24.70763761,90.899,90.791,36.97822034]
[1772617448138,24.70763761,90.881,90.794,36.97822034]
[1772617449242,24.70763761,90.881,90.799,36.97822034]
[1772617450238,24.12212491,90.878,90.799,36.97822034]
[1772617450939,24.12212491,90.878,90.8,36.97822034]
[1772617451946,24.12212491,90.878,90.805,36.97822034]
[1772617452145,24.30454622,90.902,90.805,36.97822034]
[1772617452443,24.30454622,90.902,90.818,36.97822034]
[1772617452640,24.30454622,90.9,90.818,36.97822034]
[1772617453140,24.30454622,90.9,90.821,36.97822034]
[1772617453842,24.30454622,90.9,90.81,4.15045009]
[1772617453843,34.21773431,90.916,90.834,36.97822034]
[1772617454033,24.31873431,90.915,90.834,36.97822034]
[1772617455039,28.4618691,90.912,90.834,36.97822034]
[1772617455942,28.47653633,90.932,90.837,36.97822034]
[1772617456139,28.47653633,90.932,90.797,154.185]
[1772617456140,28.47653633,90.932,90.851,36.97822034]
[1772617456340,30.13058054,90.93,90.851,36.97822034]
[1772617456641,30.13058054,90.93,90.811,36.97822034]
[1772617457641,30.14526387,90.902,90.822,36.97822034]
[1772617458645,30.14526387,90.902,90.825,36.61719562]
[1772617459644,9.898,90.92,90.845,36.61719562]
[1772617459849,10.96217286,90.958,90.845,36.61719562]
[1772617459850,32.22185891,90.919,90.845,36.61719562]
[1772617460948,32.16195374,90.915,90.845,36.61719562]
[1772617461450,32.17471207,90.901,90.826,36.61719562]
[1772617462550,32.17471207,90.901,90.828,36.72321765]
[1772617463048,32.17471207,90.901,90.791,116.0]
[1772617463049,32.17471207,90.901,90.832,36.72321765]
[1772617463246,31.72580702,90.899,90.832,36.72321765]
[1772617464452,33.63710493,90.893,90.832,36.72321765]
[1772617465155,33.64961401,90.891,90.821,36.72321765]
[1772617465653,153.935,90.945,90.771,19.829]
[1772617465654,33.64961401,90.917,90.833,36.72321765]
[1772617466551,33.64961401,90.917,90.841,36.72321765]
[1772617467147,9.897,90.933,90.862,36.72321765]
[1772617467453,33.69116918,90.935,90.862,36.72321765]
[1772617468356,33.69116918,90.935,90.869,36.72321765]
[1772617468954,33.69116918,90.935,90.873,36.72321765]
[1772617469455,33.69116918,90.935,90.851,36.72321765]
[1772617469656,33.69116918,90.935,90.796,19.823]
[1772617469657,33.69116918,90.935,90.833,36.72321765]
[1772617470359,33.86717062,90.905,90.834,46.63021765]
[1772617471055,33.86717062,90.905,90.835,36.72321765]
[1772617471463,33.86717062,90.905,90.839,9.907]
[1772617471758,33.86717062,90.905,90.84,36.72321765]
[1772617472162,33.86717062,90.905,90.844,36.72321765]
[1772617472459,9.899,90.915,90.844,36.72321765]
[1772617473458,33.19196159,90.91,90.848,36.72321765]
[1772617473663,33.19196159,90.91,90.811,36.72321765]
[1772617474164,9.9,90.898,90.833,36.72321765]
[1772617474861,19.789,90.955,90.833,36.72321765]
[1772617474862,33.77255724,90.897,90.833,36.72321765]
[1772617475062,9.902,90.88,90.809,36.72321765]
[1772617475459,9.903,90.871,90.809,36.72321765]
[1772617475650,33.78372033,90.88,90.809,36.72321765]
[1772617475651,33.78372033,90.87,90.809,36.72321765]
[1772617476553,33.92657906,90.864,90.792,9.912]
[1772617476754,33.92657906,90.864,90.792,46.63521765]
[1772617477058,9.906,90.847,90.792,36.72321765]
[1772617477262,33.93802644,90.846,90.772,36.72321765]
[1772617477758,33.93802644,90.834,90.772,36.72321765]
[1772617478560,33.90132879,90.832,90.772,36.72321765]
[1772617479354,33.90132879,90.832,90.737,36.72321765]
[1772617479860,9.908,90.828,90.761,36.72321765]
[1772617480862,33.90132879,90.832,90.761,36.72321765]
[1772617481863,9.908,90.83,90.762,9.915]
[1772617482058,9.908,90.83,90.763,36.72321765]
[1772617482765,9.909,90.82,90.763,36.72321765]
[1772617482961,33.87940292,90.869,90.763,36.72321765]
[1772617483653,33.88935947,90.842,90.766,36.72321765]
[1772617483858,33.88935947,90.869,90.766,36.72321765]
[1772617484264,33.88935947,90.869,90.774,36.72321765]
[1772617484764,34.33873606,90.856,90.778,36.72321765]
[1772617485062,34.33906844,90.842,90.778,36.72321765]
[1772617487563,9.907,90.841,90.778,36.72321765]
[1772617488963,34.69509821,90.84,90.78,37.43553752]
[1772617489469,9.906,90.852,90.78,37.43553752]
[1772617490068,34.70520849,90.849,90.783,9.913]
[1772617490368,34.70520849,90.849,90.784,37.43553752]
[1772617491263,9.906,90.847,90.784,37.43553752]
[1772617491472,34.65563981,90.846,90.784,37.43553752]
[1772617491766,9.908,90.827,90.765,37.43553752]
[1772617491970,34.65563981,90.826,90.765,37.43553752]
[1772617492466,34.35947866,90.823,90.747,37.43553752]
[1772617494566,34.35947866,90.823,90.765,9.915]
[1772617494871,34.35947866,90.823,90.766,37.43553752]
[1772617495364,35.19257129,90.84,90.769,37.43553752]
[1772617496570,9.908,90.83,90.769,37.43553752]
[1772617496771,35.19257129,90.84,90.769,37.43553752]
[1772617497466,45.09957129,90.84,90.771,9.914]
[1772617497669,35.26296151,90.839,90.769,37.43553752]
[1772617498466,35.39798217,90.869,90.77,37.43553752]
[1772617498772,35.39798217,90.869,90.772,37.43553752]
[1772617499070,35.39798217,90.855,90.776,37.43553752]
[1772617499472,35.39798217,90.852,90.787,37.43553752]
[1772617500168,35.39798217,90.851,90.787,37.43553752]
[1772617500764,35.10020311,90.848,90.787,37.43553752]
[1772617501165,273.51059798,90.892,90.787,37.43553752]
[1772617501166,35.10802025,90.883,90.787,37.43553752]
[1772617501370,35.10802025,90.883,90.822,37.43553752]
[1772617501568,9.901,90.891,90.822,37.43553752]
[1772617501569,35.10802025,90.92,90.822,47.24305653]
[1772617501868,9.896,90.937,90.857,9.905]
[1772617502170,35.10802025,90.946,90.858,37.43553752]
[1772617502364,35.29004214,90.935,90.861,9.904]
[1772617502565,35.29004214,90.957,90.862,37.43553752]
[1772617502969,35.29004214,90.957,90.869,37.43553752]
[1772617503267,10.93355021,90.986,90.869,37.43553752]
[1772617503572,9.894,90.958,90.878,37.43553752]
[1772617503963,4.15045009,91.01,90.878,37.43553752]
[1772617504163,9.893,90.97,90.879,37.43553752]
[1772617504770,128.15045009,90.99,90.879,37.43553752]
[1772617505062,4.15045009,90.97,90.879,37.43553752]
[1772617505266,26.59944007,90.969,90.879,37.43553752]
[1772617505664,9.896,90.938,90.879,37.43553752]
[1772617506269,26.99990801,90.93,90.838,37.43553752]
[1772617506673,26.99990801,90.959,90.851,37.43553752]
[1772617507075,26.99990801,90.959,90.867,37.43553752]
[1772617507076,9.894,90.953,90.867,37.43553752]
[1772617507368,26.99990801,90.959,90.867,37.43553752]
[1772617508371,26.99990801,90.959,90.871,37.43553752]
[1772617508874,27.00684734,90.998,90.901,37.43553752]
[1772617509067,27.00684734,90.998,90.842,13.12828953]
[1772617509068,27.00684734,91.039,90.921,37.43553752]
[1772617509269,11.08644945,91.048,90.924,37.43553752]
[1772617509270,27.02029118,91.004,90.924,37.43553752]
[1772617509764,9.889,91.001,90.924,37.43553752]
[1772617511669,27.02029118,91.004,90.924,37.43553752]
[1772617511670,9.891,90.989,90.924,37.43553752]
[1772617511873,27.02029118,91.004,90.924,37.43553752]
[1772617512070,9.89,90.99,90.924,37.43553752]
[1772617513169,9.889,91.002,90.924,37.43553752]
[1772617513474,27.01704815,91.001,90.924,37.43553752]
[1772617514173,26.79478463,90.995,90.924,37.43553752]
[1772617514474,26.79478463,90.995,90.899,37.43553752]
[1772617515269,26.79478463,90.995,90.902,37.43553752]
[1772617515467,26.80692184,90.989,90.902,37.43553752]
[1772617515870,9.892,90.979,90.902,37.43553752]
[1772617516473,36.66208125,90.979,90.902,37.43553752]
[1772617517075,26.77008125,90.979,90.903,37.43553752]
[1772617517275,26.78177716,90.997,90.903,37.43553752]
[1772617517673,26.78177716,90.995,90.917,37.43553752]
[1772617518372,4.14713553,91.03,90.88,4.14713553]
[1772617518373,26.45207474,90.994,90.919,36.71605842]
[1772617518877,26.45207474,90.971,90.901,36.71605842]
[1772617519078,26.45207474,90.971,90.903,36.71605842]
[1772617519268,26.45207474,90.971,90.905,36.71605842]
[1772617519473,9.891,90.984,90.905,36.71605842]
[1772617520980,27.23763884,91.039,90.921,36.71605842]
[1772617521374,9.889,91.001,90.924,36.71605842]
[1772617521581,27.25104469,91.008,90.924,36.71605842]
[1772617522575,9.891,90.987,90.924,36.71605842]
[1772617523180,4.14713553,91.01,90.924,36.71605842]
[1772617523181,27.41759714,90.986,90.924,36.71605842]
[1772617523380,27.43026426,90.982,90.924,36.71605842]
[1772617523780,27.43026426,90.982,90.897,38.57090804]
[1772617523975,153.727,91.068,90.897,38.57090804]
[1772617523976,27.43026426,91.002,90.897,38.57090804]
[1772617524178,27.43026426,91.002,90.901,38.57090804]
[1772617524475,27.43026426,91.002,90.938,38.57090804]
[1772617524676,9.888,91.013,90.938,38.57090804]
[1772617526276,9.888,91.013,90.94,38.57090804]
[1772617527078,27.81116529,91.026,90.943,38.57090804]
[1772617527480,9.885,91.044,90.978,38.57090804]
[1772617527674,27.65210508,91.043,90.955,38.57090804]
[1772617528080,124.0,91.07,90.956,38.57090804]
[1772617528081,27.65210508,91.063,90.956,38.57090804]
[1772617529380,9.884,91.049,90.985,38.57090804]
[1772617529576,27.65210508,91.063,90.985,38.57090804]
[1772617531383,9.885,91.039,90.985,38.57090804]
[1772617531982,27.65210508,91.063,90.985,38.57090804]
[1772617533485,26.99418647,91.084,90.985,38.57090804]
[1772617533880,26.99418647,91.084,91.014,38.57090804]
[1772617533881,36.87418647,91.084,91.014,38.57090804]
[1772617534476,266.6007941,91.085,91.016,38.57090804]
[1772617534985,27.00483329,91.084,91.016,38.57090804]
[1772617535581,27.00483329,91.084,90.938,9.80751901]
[1772617535582,27.00483329,91.084,90.997,48.46090804]
[1772617535785,27.00483329,91.084,90.998,38.57090804]
[1772617537279,266.6007941,91.085,91.001,38.57090804]
[1772617537476,26.95642443,91.13,91.02,4.14713553]
[1772617537880,88.78404615,91.129,91.051,9.884]
[1772617538080,78.90904615,91.129,91.051,9.884]
[1772617538886,9.876,91.12,91.041,9.885]
[1772617539087,78.90904615,91.129,91.041,9.885]
[1772617539288,78.90904615,91.129,91.02,4.14713553]
[1772617539987,78.90904615,91.12,91.04,9.885]
[1772617540183,78.90904615,91.12,91.02,4.14713553]
[1772617540387,9.877,91.113,91.048,9.884]
[1772617540582,78.90904615,91.12,91.02,4.14713553]
[1772617540987,9.877,91.118,91.057,9.883]
[1772617541486,78.90904615,91.118,91.02,4.14713553]
[1772617541683,78.90904615,91.118,90.9,4.14713553]
[1772617541684,78.90904615,91.138,91.04,4.14713553]
[1772617541986,19.736,91.198,91.04,4.14713553]
[1772617541987,4.14713553,91.16,91.04,4.14713553]
[1772617542188,9.875,91.128,91.058,9.883]
[1772617542586,78.90904615,91.131,91.04,4.14713553]
[1772617542792,9.875,91.13,91.058,9.883]
[1772617543091,78.90904615,91.129,91.02,4.14713553]
[1772617543396,9.877,91.111,91.02,4.14713553]
[1772617543690,78.90904615,91.129,91.02,4.14713553]
[1772617544589,78.90904615,91.129,91.0,4.14713553]
[1772617545281,9.878,91.102,90.978,9.80751901]
[1772617545490,78.90904615,91.121,91.0,4.14713553]
[1772617545892,78.90904615,91.121,91.02,4.14713553]
[1772617546385,78.90904615,91.146,91.05,4.14713553]
[1772617546584,78.90904615,91.146,91.04,4.14713553]
[1772617547090,9.875,91.133,91.058,9.883]
[1772617547291,78.90904615,91.146,91.058,9.883]
[1772617547792,78.90904615,91.169,91.06,4.14713553]
[1772617548087,78.90904615,91.169,91.08,4.14713553]
[1772617548589,78.7640313,91.167,91.06,4.14713553]
[1772617550297,78.7640313,91.156,91.04,4.14713553]
[1772617550790,78.7640313,91.154,91.087,9.88]
[1772617551794,78.7640313,91.154,91.098,9.879]
[1772617551992,78.7640313,91.154,91.029,9.80751901]
[1772617552295,78.7640313,91.154,91.05,4.14713553]
[1772617552597,78.7640313,91.184,91.09,4.14713553]
[1772617552992,78.7640313,91.184,91.051,173.522]
[1772617552993,78.7640313,91.18,91.113,9.877]
[1772617553594,78.7640313,91.157,91.095,9.879]
[1772617554497,78.7640313,91.157,91.105,9.878]
[1772617554997,78.7640313,91.186,91.125,9.876]
[1772617555188,78.7640313,91.186,91.09,4.14713553]
[1772617556296,78.7640313,91.186,91.076,19.762]
[1772617557499,21.63743359,91.235,91.05,4.14713553]
[1772617557500,78.7640313,91.172,91.05,4.14713553]
[1772617557797,10.72147457,91.219,91.004,153.834]
[1772617557798,78.7640313,91.159,91.004,153.834]
[1772617557999,78.7640313,91.179,91.05,4.14713553]
[1772617558398,78.7640313,91.15,91.088,9.88]
[1772617558598,78.7640313,91.15,91.05,4.14713553]
[1772617559302,78.7640313,91.15,91.0,13.12828953]
[1772617559303,78.7640313,91.139,91.01,4.14713553]
[1772617560197,78.7640313,91.114,91.05,9.884]
[1772617560403,78.7640313,91.114,91.0,4.14713553]
[1772617560702,78.7640313,91.114,90.981,19.783]
[1772617561204,78.7640313,91.089,90.981,19.783]
[1772617561708,78.7640313,91.089,91.042,9.885]
[1772617562202,78.7640313,91.089,90.98,4.14713553]
[1772617562402,78.7640313,91.089,91.04,9.885]
[1772617562807,78.7640313,91.089,90.986,19.782]
[1772617563008,78.7640313,91.089,90.98,4.14713553]
[1772617563708,78.7640313,91.086,91.025,9.886]
[1772617564610,78.7640313,91.086,91.034,9.886]
[1772617566005,78.7640313,91.086,90.98,4.14713553]
[1772617566206,78.7640313,91.086,90.981,7.85118327]
[1772617566408,78.7640313,91.086,90.982,7.85118327]
[1772617566613,78.7640313,91.086,90.983,7.85118327]
[1772617566911,78.7640313,91.086,90.984,7.85118327]
[1772617567211,78.7640313,91.086,90.985,7.85118327]
[1772617567408,78.7640313,91.086,90.986,7.85118327]
[1772617567609,78.71018095,91.082,91.011,9.888]
[1772617568209,78.32200869,91.069,90.997,9.89]
[1772617568812,78.32200869,91.062,90.986,9.891]
[1772617569008,78.32200869,91.062,90.951,29.52395911]
[1772617569213,78.32200869,91.062,90.956,9.73395911]
[1772617569408,78.32200869,91.062,91.002,9.889]
[1772617569709,78.32200869,91.062,90.956,9.73395911]
[1772617569909,78.32200869,91.062,90.957,7.89247223]
[1772617570116,78.32361943,91.06,90.958,7.89247223]
[1772617570413,78.32361943,91.06,90.959,7.89247223]
[1772617570613,78.32361943,91.06,90.96,7.89247223]
[1772617570813,78.32361943,91.06,90.961,7.89247223]
[1772617571008,78.32361943,91.06,90.962,7.89247223]
[1772617571204,78.12607155,91.048,90.963,7.89809537]
[1772617571412,78.12607155,91.048,90.932,9.82979502]
[1772617571810,78.12739338,91.042,90.932,17.73429329]
[1772617572013,78.12739338,91.042,90.933,7.90449827]
[1772617572205,78.12739338,91.042,90.934,7.90449827]
[1772617572407,78.12739338,91.042,90.935,7.90449827]
[1772617572606,78.12739338,91.042,90.933,9.82979502]
[1772617572607,78.12739338,91.042,90.967,9.893]
[1772617572915,4.13882037,91.07,90.967,9.893]
[1772617572916,78.1892403,91.039,90.967,9.893]
[1772617573917,78.1892403,91.039,90.976,9.892]
[1772617575218,78.1892403,91.039,90.985,9.891]
[1772617577414,78.14027607,91.036,90.953,9.82979502]
[1772617577630,78.14027607,91.036,90.954,7.90351772]
[1772617577923,78.14027607,91.036,90.955,7.90351772]
[1772617578115,78.14027607,91.036,90.956,7.90351772]
[1772617578318,78.14027607,91.036,90.957,7.90351772]
[1772617578514,78.14027607,91.036,90.958,7.90351772]
[1772617578714,78.14027607,91.036,90.959,7.90351772]
[1772617578921,78.14027607,91.036,90.96,7.90351772]
[1772617579120,78.14027607,91.036,90.972,9.892]
[1772617579325,78.14027607,91.036,90.94,13.12828953]
[1772617579326,78.14027607,91.036,90.952,116.0]
[1772617579521,78.14027607,91.036,90.953,7.9081652]
[1772617579721,9.89,90.994,90.901,9.82979502]
[1772617580022,77.63332291,90.993,90.902,7.91907778]
[1772617580225,77.63332291,90.993,90.903,7.91907778]
[1772617580419,78.0153116,90.981,90.923,9.898]
[1772617580624,78.0153116,90.981,90.87,9.82979502]
[1772617580826,78.0153116,90.981,90.871,7.91800211]
[1772617581024,78.0153116,90.981,90.872,7.91800211]
[1772617581224,78.0153116,90.981,90.873,7.91800211]
[1772617581425,78.01571779,90.961,90.874,7.91800211]
[1772617581625,78.01571779,90.961,90.875,7.91800211]
[1772617581827,78.01571779,90.961,90.876,7.91800211]
[1772617582026,78.01571779,90.961,90.877,7.91800211]
[1772617582228,78.01571779,90.961,90.909,9.899]
[1772617582428,78.01571779,90.961,90.854,9.82979502]
[1772617582629,78.07960634,90.959,90.886,9.902]
[1772617583521,78.08065063,90.946,90.886,9.902]
[1772617583922,78.08065063,90.946,90.843,19.813]
[1772617584120,78.08065063,90.946,90.844,7.89295478]
[1772617584321,78.08065063,90.946,90.845,7.89295478]
[1772617584518,78.08065063,90.946,90.846,7.89295478]
[1772617584726,78.08065063,90.946,90.85,4.13882037]
[1772617584921,78.08065063,90.946,90.904,9.9]
[1772617585928,61.35965063,90.946,90.915,9.899]
[1772617586430,9.891,90.981,90.915,9.899]
[1772617586630,9.89,90.991,90.927,9.897]
[1772617587025,4.13882037,91.01,90.936,9.896]
[1772617587630,9.888,91.012,90.945,9.895]
[1772617587824,4.13882037,91.03,90.903,154.005]
[1772617588019,4.13882037,91.03,90.904,7.84997459]
[1772617588223,4.13882037,91.03,90.854,13.12828953]
[1772617588224,4.13882037,91.06,90.93,4.13882037]
[1772617588436,4.13882037,91.06,90.903,154.005]
[1772617588437,61.03053843,91.039,90.903,154.005]
[1772617588729,61.03053843,91.034,90.962,9.893]
[1772617588926,61.03053843,91.034,90.911,153.99]
[1772617589130,61.03053843,91.034,90.912,7.84354208]
[1772617589326,61.03053843,91.034,90.94,4.13882037]
[1772617590832,61.03053843,91.034,90.992,9.89]
[1772617591230,61.03053843,91.034,90.894,13.12828953]
[1772617591231,9.882,91.065,90.96,4.13882037]
[1772617591436,4.13882037,91.09,90.96,4.13882037]
[1772617591832,9.882,91.067,90.96,4.13882037]
[1772617592428,4.13882037,91.09,90.96,4.13882037]
[1772617592627,4.13882037,91.09,90.961,7.8433155]
[1772617592829,9.883,91.058,90.962,7.8433155]
[1772617593026,4.13882037,91.07,90.94,4.13882037]
[1772617593229,53.08692037,91.069,90.941,7.85695124]
[1772617593436,53.08692037,91.069,90.942,7.85695124]
[1772617593631,53.08692037,91.069,90.943,7.85695124]
[1772617593938,53.08692037,91.056,90.944,7.85695124]
[1772617594135,53.08692037,91.056,90.945,7.85695124]
[1772617594433,53.08692037,91.056,90.946,7.85695124]
[1772617594637,53.08692037,91.056,90.947,7.85695124]
[1772617594836,53.08692037,91.056,90.948,7.85695124]
[1772617595037,53.08692037,91.056,90.949,7.85695124]
[1772617595332,53.28364842,91.053,90.95,7.85695124]
[1772617595532,53.28364842,91.053,90.951,7.85695124]
[1772617595733,53.28364842,91.053,90.952,7.85695124]
[1772617595934,53.28364842,91.031,90.91,4.13882037]
[1772617596134,53.28364842,91.031,90.911,7.8628345]
[1772617596335,53.28364842,91.031,90.912,7.8628345]
[1772617596532,53.37369388,91.028,90.946,9.895]
[1772617596735,53.37369388,91.028,90.91,4.13882037]
[1772617596938,53.37369388,91.028,90.911,7.85545392]
[1772617597242,153.755,91.051,90.88,4.13882037]
[1772617597243,53.37369388,90.984,90.912,9.899]
[1772617597927,53.37650579,90.982,90.923,9.898]
[1772617599041,53.96119257,90.98,90.87,4.13882037]
[1772617599241,53.96119257,90.98,90.871,7.8713855]
[1772617599440,53.96119257,90.98,90.872,7.8713855]
[1772617599639,53.96119257,90.98,90.873,7.8713855]
[1772617599838,53.96368003,90.967,90.874,7.8713855]
[1772617600043,53.96368003,90.967,90.875,7.8713855]
[1772617600239,53.96368003,90.967,90.876,7.8713855]
[1772617600450,53.96368003,90.967,90.877,7.8713855]
[1772617600743,53.96368003,90.967,90.909,9.899]
[1772617600947,53.96368003,90.967,90.88,4.13882037]
[1772617601145,53.96368003,90.967,90.918,9.898]
[1772617601746,53.96368003,90.967,90.908,9.899]
[1772617601940,53.96368003,90.967,90.87,4.13882037]
[1772617602136,53.96368003,90.967,90.871,7.89838205]
[1772617602335,53.96368003,90.967,90.872,7.89838205]
[1772617602540,53.96368003,90.967,90.873,7.89838205]
[1772617602845,53.96368003,90.967,90.874,7.89838205]
[1772617603047,53.96368003,90.967,90.875,7.89838205]
[1772617603246,53.96368003,90.967,90.908,9.899]
[1772617606243,53.90186919,90.965,90.908,9.899]
[1772617607246,4.13882037,91.01,90.909,7.92846052]
[1772617607447,9.89,90.995,90.91,7.92846052]
[1772617607648,9.89,90.995,90.911,7.92846052]
[1772617607950,9.89,90.995,90.912,7.92846052]
[1772617608151,9.89,90.995,90.926,9.897]
[1772617609251,44.72076925,90.994,90.935,9.896]
[1772617609450,9.891,90.981,90.899,9.82979502]
[1772617609646,9.891,90.981,90.89,8.40455858]
[1772617609647,43.27705769,90.98,90.9,7.93001194]
[1772617609846,43.27705769,90.98,90.901,7.93001194]
[1772617610049,43.27705769,90.98,90.902,7.93001194]
[1772617610352,43.27705769,90.98,90.903,7.93001194]
[1772617610554,43.27705769,90.98,90.911,9.899]
[1772617610753,43.27705769,90.98,90.912,7.93001194]
[1772617610955,43.27705769,90.98,90.913,7.93001194]
[1772617611149,43.27705769,90.98,90.914,7.93001194]
[1772617611355,43.27705769,90.98,90.915,7.93001194]
[1772617611654,43.27705769,90.98,90.916,7.93001194]
[1772617611851,43.27705769,90.98,90.895,9.82979502]
[1772617612051,43.27705769,90.98,90.896,7.94366215]
[1772617612250,43.27705769,90.98,90.897,7.94366215]
[1772617612550,43.27705769,90.969,90.9,9.9]
[1772617612746,43.27705769,90.969,90.901,7.94366215]
[1772617612946,43.27705769,90.965,90.902,9.10021932]
[1772617613150,43.27705769,90.965,90.903,7.94366215]
[1772617613350,43.27705769,90.965,90.904,7.94366215]
[1772617613652,43.27705769,90.965,90.902,9.10021932]
[1772617613653,43.27705769,90.965,90.905,7.94366215]
[1772617613852,43.27705769,90.965,90.906,7.94366215]
[1772617614054,43.27705769,90.965,90.907,7.94366215]
[1772617614350,43.27705769,90.965,90.908,7.94366215]
[1772617614548,9.893,90.964,90.909,7.94366215]
[1772617614750,43.27705769,90.963,90.91,7.94366215]
[1772617614952,43.27705769,90.963,90.901,9.9]